fUST/lending_fUST_20240831
["ID","MTS","AMOUNT","RATE_DAILY","PERIOD"]
[336755481,1725099295001,-500.0,0.00034246,31]
[336755482,1725099295029,-500.0,0.00034246,31]
[336755483,1725099295057,-500.0,0.00034246,31]
[336755484,1725099295086,-500.0,0.00034246,31]
[336755485,1725099295114,-500.0,0.00034246,31]
[336755486,1725099295144,-500.0,0.00034246,31]
[336755487,1725099295173,-500.0,0.00034246,31]
[336755488,1725099295202,-500.0,0.00034246,31]
[336755489,1725099295229,-500.0,0.00034246,31]
[336755490,1725099295257,-500.0,0.00034246,31]
[336755491,1725099295286,-500.0,0.00034246,31]
[336755492,1725099295314,-500.0,0.00034246,31]
[336755493,1725099295340,-500.0,0.00034246,31]
[336755494,1725099295369,-500.0,0.00034246,31]
[336755495,1725099295397,-500.0,0.00034246,31]
[336755496,1725099295427,-500.0,0.00034246,31]
[336755497,1725099295457,-500.0,0.00034246,31]
[336755498,1725099295487,-500.0,0.00034246,31]
[336755499,1725099295516,-500.0,0.00034246,31]
[336755500,1725099295549,-500.0,0.00034246,31]
[336755501,1725099295582,-1692.3,0.00034246,31]
[336755502,1725099295614,-500.0,0.00034246,31]
[336755503,1725099295647,-829.5,0.00034246,31]
[336755504,1725099295678,-500.0,0.00034246,31]
[336755505,1725099295710,-500.0,0.00034246,31]
[336755506,1725099295740,-500.0,0.00034246,31]
[336755507,1725099295769,-500.0,0.00034246,31]
[336755508,1725099295798,-500.0,0.00034246,31]
[336755509,1725099295825,-500.0,0.00034246,31]
[336755510,1725099295853,-500.0,0.00034246,31]
[336755511,1725099295883,-2989.19,0.00034246,31]
[336755512,1725099295913,-7241.01,0.00034246,31]
[336755513,1725099295941,-500.0,0.00034246,31]
[336755514,1725099295968,-500.0,0.00034246,31]
[336755515,1725099295995,-500.0,0.00034246,31]
[336755516,1725099296023,-1425.52,0.00034246,31]
[336755517,1725099296051,-500.0,0.00034246,31]
[336755518,1725099296083,-161.55,0.000345,31]
[336755519,1725099296115,-161.55,0.000345,31]
[336755520,1725099296142,-1362.22,0.0003452,31]
[336755521,1725099296169,-500.0,0.0003452,31]
[336755522,1725099296199,-501.87473027,0.0003452,31]
[336755523,1725099296226,-923.55,0.0003452,31]
[336755524,1725099296253,-711.59,0.0003452,31]
[336755525,1725099296282,-449.36326971,0.0003452,31]
[336755526,1725099296310,-500.0,0.0003452,31]
[336755527,1725099296337,-500.0,0.0003452,31]
[336755528,1725099296363,-500.0,0.0003452,31]
[336755529,1725099296390,-560.61344166,0.0003452,31]
[336755530,1725099296416,-500.0,0.0003452,31]
[336755531,1725099296443,-500.0,0.0003452,31]
[336755532,1725099296469,-298.09377482,0.0003452,31]
[336755533,1725099296496,-500.0,0.0003452,31]
[336755534,1725099296618,-500.0,0.0003452,31]
[336755535,1725099296669,-500.0,0.0003452,31]
[336755536,1725099296697,-500.0,0.0003452,31]
[336755537,1725099296725,-500.0,0.0003452,31]
[336755538,1725099296753,-500.0,0.0003452,31]
[336755539,1725099296782,-746.7,0.0003452,31]
[336755540,1725099296810,-500.0,0.0003452,31]
[336755541,1725099296839,-500.0,0.0003452,31]
[336755542,1725099296867,-500.0,0.0003452,31]
[336755543,1725099296895,-500.0,0.0003452,31]
[336755544,1725099296923,-500.0,0.0003452,30]
[336755545,1725099296953,-500.0,0.0003452,31]
[336755546,1725099296982,-622.59,0.0003452,31]
[336755547,1725099297011,-500.0,0.0003452,31]
[336755548,1725099297039,-500.0,0.0003452,31]
[336755549,1725099297068,-500.0,0.0003452,31]
[336755550,1725099297095,-500.0,0.0003452,31]
[336755551,1725099297123,-500.0,0.0003452,31]
[336755552,1725099297153,-500.0,0.0003452,31]
[336755553,1725099297182,-500.0,0.0003452,31]
[336755554,1725099297212,-433.60317352,0.0003452,31]
[336755555,1725099297242,-500.0,0.0003452,31]
[336755556,1725099297272,-500.0,0.0003452,31]
[336755557,1725099297307,-508.08,0.0003452,31]
[336755558,1725099297337,-500.0,0.0003452,31]
[336755559,1725099297366,-306.92301313,0.0003452,31]
[336755560,1725099297395,-723.65,0.0003452,31]
[336755561,1725099297425,-500.0,0.0003452,31]
[336755562,1725099297452,-703.27,0.0003452,31]
[336755563,1725099297481,-500.0,0.0003452,31]
[336755564,1725099297510,-500.0,0.0003452,31]
[336755565,1725099297536,-500.0,0.0003452,31]
[336755566,1725099297567,-500.0,0.0003452,31]
[336755567,1725099297596,-500.0,0.0003452,31]
[336755568,1725099297623,-500.0,0.0003452,31]
[336755569,1725099297655,-500.0,0.0003452,31]
[336755570,1725099297683,-500.0,0.0003452,31]
[336755571,1725099297710,-500.0,0.0003452,31]
[336755572,1725099297739,-196.0099342,0.0003452,31]
[336755573,1725099297770,-500.0,0.0003452,31]
[336755574,1725099297797,-500.0,0.0003452,31]
[336755575,1725099297825,-9243.14,0.0003452,31]
[336755576,1725099297852,-509.93222183,0.0003452,31]
[336755577,1725099297879,-500.0,0.0003452,31]
[336755578,1725099297907,-500.0,0.0003452,31]
[336755579,1725099297934,-809.18,0.0003452,31]
[336755580,1725099297961,-500.0,0.0003452,31]
[336755581,1725099297988,-500.0,0.0003452,31]
[336755582,1725099298014,-508.85369184,0.0003452,31]
[336755583,1725099298040,-500.0,0.0003452,31]
[336755584,1725099298067,-500.0,0.0003452,31]
[336755585,1725099298094,-152.91951265,0.0003452,31]
[336755586,1725099298121,-500.0,0.0003452,31]
[336755587,1725099298149,-500.0,0.0003452,31]
[336755588,1725099298177,-963.64,0.0003452,31]
[336755589,1725099298204,-500.0,0.0003452,31]
[336755590,1725099298231,-500.0,0.0003452,31]
[336755591,1725099298261,-500.0,0.0003452,31]
[336755592,1725099298289,-568.19,0.0003452,31]
[336755593,1725099298318,-6670.08,0.0003452,31]
[336755594,1725099298344,-500.0,0.0003452,31]
[336755595,1725099298372,-500.0,0.0003452,31]
[336755596,1725099298398,-500.0,0.0003452,31]
[336755597,1725099298427,-3676.53,0.0003452,31]
[336755598,1725099298455,-838.8,0.0003452,31]
[336755599,1725099298482,-500.0,0.0003452,31]
[336755600,1725099298511,-500.0,0.0003452,31]
[336755601,1725099298539,-3263.39,0.0003452,31]
[336755602,1725099298567,-536.88,0.0003452,31]
[336755603,1725099298595,-500.0,0.0003452,31]
[336755604,1725099298622,-622.76,0.0003452,31]
[336755605,1725099298649,-502.94,0.0003452,31]
[336755606,1725099298675,-500.0,0.0003452,31]
[336755607,1725099298702,-3302.99,0.0003452,31]
[336755608,1725099298728,-500.0,0.0003452,31]
[336755609,1725099298755,-594.42,0.0003452,31]
[336755610,1725099298782,-1329.9,0.0003452,31]
[336755611,1725099298810,-614.4681378,0.0003452,31]
[336755612,1725099298838,-500.0,0.0003452,31]
[336755613,1725099298867,-629.68,0.0003452,31]
[336755614,1725099298893,-500.0,0.0003452,31]
[336755615,1725099298922,-500.0,0.0003452,31]
[336755616,1725099298949,-500.0,0.0003452,31]
[336755617,1725099298976,-500.0,0.0003452,31]
[336755618,1725099299004,-500.0,0.0003452,31]
[336755619,1725099299032,-500.0,0.0003452,31]
[336755620,1725099299059,-500.0,0.0003452,31]
[336755621,1725099299088,-500.0,0.0003452,31]
[336755622,1725099299115,-500.0,0.0003452,31]
[336755623,1725099299142,-500.0,0.0003452,31]
[336755624,1725099299281,-813.38,0.0003452,31]
[336755625,1725099299310,-500.0,0.0003452,31]
[336755626,1725099299339,-506.09998687,0.0003452,31]
[336755627,1725099299367,-500.0,0.0003452,31]
[336755628,1725099299395,-500.0,0.0003452,31]
[336755629,1725099299422,-500.0,0.0003452,31]
[336755630,1725099299451,-500.0,0.0003452,31]
[336755631,1725099299479,-1798.03,0.0003452,31]
[336755632,1725099299506,-500.0,0.0003452,31]
[336755633,1725099299534,-500.0,0.0003452,31]
[336755634,1725099299563,-500.0,0.0003452,31]
[336755635,1725099299592,-500.0,0.0003452,31]
[336755636,1725099299620,-510.30920491,0.0003452,31]
[336755637,1725099299647,-500.0,0.0003452,31]
[336755638,1725099299675,-2352.98,0.0003452,31]
[336755639,1725099299703,-2021.67,0.0003452,31]
[336755640,1725099299733,-42.66475522,0.0003452,31]
[336755641,1725099302129,183.127167,0.00014247,2]
[336755643,1725099816608,173.733675,0.00014247,2]
[336755653,1725100123437,2020.46267638,3.2e-05,2]
[336755654,1725100149281,-435.85709918,0.00018,2]
[336755673,1725100232164,-833.82698,0.00018,2]
[336755681,1725100238629,-1899.98176803,0.00018,2]
[336755682,1725100238641,-2132.8883163,0.00018,2]
[336755683,1725100238651,-201.2102181,0.00019216,2]
[336755684,1725100238660,-300.0,0.00019451,2]
[336755685,1725100238669,-300.0,0.00019451,2]
[336755686,1725100238679,-6653.37418525,0.00019452,2]
[336755687,1725100238688,-1763.95430305,0.000199,2]
[336755688,1725100238698,-51387.62717821,0.0002,2]
[336755689,1725100238707,-501.05567176,0.0002,2]
[336755690,1725100238717,-500.4230537,0.0002,2]
[336755691,1725100238727,-5575.1540275,0.00020706,2]
[336755692,1725100238736,-173.733675,0.00020707,2]
[336755693,1725100238746,-420.0,0.00021192,2]
[336755694,1725100238756,-420.0,0.00021396,2]
[336755695,1725100238765,-1763.95430305,0.00023076,2]
[336755696,1725100238775,-587.0,0.00023088,2]
[336755697,1725100238784,-587.0,0.00023536,2]
[336755698,1725100238794,-1488.61481086,0.000238,2]
[336755699,1725100238804,-4095.96440063,0.00024,60]
[336755700,1725100238813,-823.0,0.00025155,2]
[336755701,1725100238822,-823.0,0.00025889,2]
[336755702,1725100238832,-1000.5,0.00026,31]
[336755703,1725100238842,-1000.5,0.00026,31]
[336755704,1725100238852,-1009.2,0.00026,31]
[336755705,1725100238863,-173.733675,0.00027167,2]
[336755706,1725100238873,-152.84214721,0.00027168,2]
[336755707,1725100238882,-500.0,0.00027168,2]
[336755708,1725100238893,-500.0,0.00027168,2]
[336755709,1725100238902,-500.0,0.00027168,2]
[336755710,1725100238912,-534.66990371,0.00027168,2]
[336755711,1725100238922,-500.0,0.00027168,2]
[336755712,1725100238931,-500.0,0.00027168,2]
[336755713,1725100238940,-500.0,0.00027168,2]
[336755714,1725100238950,-500.0,0.00027168,2]
[336755715,1725100238961,-500.0,0.00027168,2]
[336755716,1725100238971,-500.0,0.00027168,2]
[336755717,1725100238980,-500.0,0.00027168,2]
[336755718,1725100238990,-500.0,0.00027168,2]
[336755719,1725100239000,-500.0,0.00027168,2]
[336755720,1725100239010,-575.42403067,0.00027168,2]
[336755721,1725100239020,-500.0,0.00027168,2]
[336755722,1725100239030,-500.0,0.00027168,2]
[336755723,1725100239040,-500.0,0.00027168,2]
[336755724,1725100239049,-500.0,0.00027168,2]
[336755725,1725100239059,-500.0,0.00027168,2]
[336755726,1725100239069,-500.0,0.00027168,2]
[336755727,1725100239079,-500.0,0.00027168,2]
[336755728,1725100239088,-1607.97,0.00027169,3]
[336755729,1725100239097,-2510.57,0.00027169,3]
[336755730,1725100239107,-24900.0,0.00027179,2]
[336755731,1725100239116,-1083.0,0.00027406,2]
[336755732,1725100239125,-689.243802,0.00027532,2]
[336755733,1725100239136,-250.0,0.00027776,2]
[336755734,1725100239146,-250.0,0.00027852,2]
[336755735,1725100239156,-250.0,0.00027928,2]
[336755736,1725100239165,-250.0,0.00028005,2]
[336755737,1725100239174,-250.0,0.00028081,2]
[336755738,1725100239183,-250.0,0.00028157,2]
[336755739,1725100239193,-250.0,0.00028233,2]
[336755740,1725100239203,-1887.8934312,0.00028237,2]
[336755741,1725100239213,-250.0,0.00028309,2]
[336755742,1725100239224,-250.0,0.00028386,2]
[336755743,1725100239234,-250.0,0.00028462,2]
[336755744,1725100239245,-1152.0,0.00028478,2]
[336755745,1725100239256,-189.7687152,0.00028515,2]
[336755746,1725100239266,-250.0,0.00028538,2]
[336755747,1725100239275,-11044.7802705,0.00028582,2]
[336755748,1725100239285,-250.0,0.00028614,2]
[336755749,1725100239296,-250.0,0.0002869,2]
[336755750,1725100239306,-250.0,0.00028767,2]
[336755751,1725100239315,-250.0,0.00028843,2]
[336755752,1725100239325,-250.0,0.00028919,2]
[336755753,1725100239334,-250.0,0.00028995,2]
[336755754,1725100239343,-250.0,0.00029071,2]
[336755755,1725100239352,-250.0,0.00029147,2]
[336755756,1725100239361,-250.0,0.00029224,2]
[336755757,1725100239370,-388.4,0.00029251,5]
[336755758,1725100239380,-671.9512,0.00029326,30]
[336755759,1725100239389,-294.80348238,0.00029483,2]
[336755760,1725100239398,-4683.1284343,0.00029693,2]
[336755761,1725100239408,-388.4,0.0002978,6]
[336755762,1725100239417,-151.0,0.0003,120]
[336755763,1725100239426,-151.0,0.0003,120]
[336755764,1725100239435,-150.08868193,0.0003,7]
[336755765,1725100239445,-162.0,0.0003,2]
[336755766,1725100239453,-388.4,0.00030309,6]
[336755767,1725100239463,-162.0,0.00030411,2]
[336755768,1725100239473,-388.4,0.00030838,6]
[336755769,1725100239482,-159.503366,0.00031252,2]
[336755770,1725100239491,-176.164757,0.00031252,2]
[336755771,1725100239500,-359.753642,0.00031252,2]
[336755772,1725100239510,-167.180176,0.00031252,2]
[336755773,1725100239523,-1613.0,0.00031326,2]
[336755774,1725100239533,-262.7236,0.00031326,30]
[336755775,1725100239542,-388.4,0.00031366,7]
[336755776,1725100239551,-359.753642,0.00031643,2]
[336755777,1725100239561,-162.0,0.00031644,2]
[336755778,1725100239571,-600.0,0.00031711,2]
[336755779,1725100239580,-332.421455,0.00031781,2]
[336755780,1725100239591,-151.0,0.00031808,120]
[336755781,1725100239600,-388.4,0.00031895,7]
[336755782,1725100239610,-31294.04617584,0.00032,2]
[336755783,1725100239619,-359.753642,0.00032033,2]
[336755784,1725100239629,-600.0,0.00032041,2]
[336755785,1725100239638,-600.0,0.00032371,2]
[336755786,1725100239648,-388.4,0.00032424,7]
[336755787,1725100239657,-359.753642,0.00032424,2]
[336755788,1725100239667,-263.45625589,0.00032477,2]
[336755790,1725100239676,-559.04,0.00032582,2]
[336755791,1725100239685,-150.545,0.00032582,2]
[336755792,1725100239695,-800.0,0.00032642,7]
[336755794,1725100239785,-800.0,0.00032642,14]
[336755795,1725100239812,-800.0,0.00032642,21]
[336755796,1725100239824,-800.0,0.00032642,28]
[336755797,1725100239835,-1893.35876611,0.00032676,2]
[336755798,1725100239845,-192.5,0.0003269,120]
[336755799,1725100239855,-255.00696919,0.00032699,2]
[336755800,1725100239865,-500.0,0.00032699,2]
[336755801,1725100239874,-580.98088534,0.00032699,2]
[336755802,1725100239884,-500.0,0.00032699,2]
[336755803,1725100239897,-500.0,0.00032699,2]
[336755804,1725100239908,-500.0,0.00032699,2]
[336755805,1725100239919,-500.0,0.00032699,2]
[336755806,1725100239931,-500.0,0.00032699,2]
[336755807,1725100239941,-500.0,0.00032699,2]
[336755808,1725100239951,-500.0,0.00032699,2]
[336755809,1725100239961,-500.0,0.00032699,2]
[336755810,1725100239971,-500.0,0.00032699,2]
[336755811,1725100239981,-268.48402214,0.00032699,2]
[336755812,1725100239990,-500.0,0.00032699,2]
[336755813,1725100239999,-147837.063732,0.000327,4]
[336755814,1725100240009,-671.9312157,0.00032702,2]
[336755815,1725100240018,-73918.531866,0.0003271,4]
[336755816,1725100240028,-62669.96729053,0.0003272,5]
[336755817,1725100240038,-151.0,0.00032746,7]
[336755818,1725100240047,-151.0,0.00032746,7]
[336755819,1725100240056,-414.49053,0.00032746,7]
[336755820,1725100240066,-414.49053,0.00032746,7]
[336755821,1725100240076,-17186.12686323,0.00032746,5]
[336755822,1725100240086,-147837.063732,0.00032746,4]
[336755823,1725100240096,-153.009167,0.00032766,7]
[336755824,1725100240105,-456.03058514,0.000328,2]
[336755826,1725100240114,-150.112233,0.000328,6]
[336755827,1725100240124,-150.112233,0.000328,8]
[336755828,1725100240134,-150.112233,0.000328,6]
[336755829,1725100240143,-150.112233,0.000328,6]
[336755830,1725100240153,-150.112233,0.000328,5]
[336755831,1725100240162,-150.112233,0.000328,5]
[336755832,1725100240171,-3000.0,0.000328,13]
[336755833,1725100240181,-3000.0,0.0003281,13]
[336755834,1725100240191,-176.164757,0.00032815,2]
[336755836,1725100240200,-359.753642,0.00032815,2]
[336755837,1725100240210,-167.180176,0.00032815,2]
[336755838,1725100240220,-500.0,0.00032819,2]
[336755839,1725100240230,-502.71895526,0.00032819,2]
[336755840,1725100240240,-151.064568,0.0003282,7]
[336755841,1725100240250,-3000.0,0.0003282,13]
[336755842,1725100240261,-155.0,0.0003282,29]
[336755843,1725100240271,-3000.0,0.0003283,13]
[336755844,1725100240281,-3000.0,0.0003284,13]
[336755845,1725100240293,-4615.776827,0.0003285,13]
[336755846,1725100240305,-151.0,0.00032865,7]
[336755847,1725100240317,-151.0,0.00032865,7]
[336755848,1725100240327,-151.0,0.00032865,7]
[336755849,1725100240337,-151.0,0.00032865,7]
[336755850,1725100240347,-151.0,0.00032865,7]
[336755852,1725100240356,-151.0,0.00032865,7]
[336755854,1725100240367,-151.0,0.00032866,7]
[336755856,1725100240376,-152.762247,0.00032866,7]
[336755858,1725100240387,-151.0,0.00032866,7]
[336755860,1725100240396,-151.0,0.00032866,7]
[336755861,1725100240405,-675.746732,0.00032866,7]
[336755863,1725100240414,-380.228286,0.00032866,7]
[336755865,1725100240423,-380.228286,0.00032866,7]
[336755867,1725100240433,-151.0,0.00032866,7]
[336755869,1725100240442,-323.188073,0.00032866,7]
[336755871,1725100240452,-151.0,0.00032866,7]
[336755873,1725100240461,-542.787834,0.00032866,7]
[336755875,1725100240471,-542.787834,0.00032866,7]
[336755877,1725100240480,-567.125115,0.00032866,7]
[336755879,1725100240489,-567.125115,0.00032866,7]
[336755881,1725100240499,-5442.165032,0.00032866,7]
[336755883,1725100240509,-5442.165032,0.00032866,7]
[336755885,1725100240522,-196.375746,0.00032866,7]
[336755887,1725100240534,-196.375746,0.00032866,7]
[336755889,1725100240544,-455.988099,0.00032866,7]
[336755892,1725100240554,-151.0,0.00032866,7]
[336755894,1725100240565,-455.988099,0.00032866,7]
[336755896,1725100240574,-1018.195065,0.00032866,7]
[336755898,1725100240583,-1018.195065,0.00032866,7]
[336755900,1725100240595,-3716.805667,0.00032866,7]
[336755902,1725100240604,-3716.805667,0.00032866,7]
[336755904,1725100240614,-151.0,0.00032866,7]
[336755906,1725100240623,-151.0,0.00032866,7]
[336755908,1725100240633,-1897.485176,0.00032866,7]
[336755910,1725100240645,-1897.485176,0.00032866,7]
[336755912,1725100240654,-420.868197,0.00032866,7]
[336755914,1725100240663,-420.868197,0.00032866,7]
[336755915,1725100240673,-151.30571,0.00032866,2]
[336755917,1725100240683,-192.611581,0.00032866,7]
[336755919,1725100240693,-192.611581,0.00032866,7]
[336755921,1725100240702,-266.849787,0.00032866,7]
[336755923,1725100240711,-266.849787,0.00032866,7]
[336755925,1725100240721,-1797.53231,0.00032866,7]
[336755927,1725100240730,-1797.53231,0.00032866,7]
[336755929,1725100240740,-1608.0,0.0003287,10]
[336755931,1725100240749,-158.5,0.00032873,5]
[336755933,1725100240758,-158.51779988,0.00032873,5]
[336755935,1725100240768,-254.46677184,0.00032873,5]
[336755936,1725100240777,-500.0,0.00032873,4]
[336755937,1725100240786,-200.51213652,0.00032873,5]
[336755938,1725100240796,-158.5152449,0.00032873,5]
[336755939,1725100240805,-500.0,0.00032873,5]
[336755940,1725100240814,-150.4907273,0.00032875,2]
[336755941,1725100240823,-3723.94806309,0.00032875,2]
[336755942,1725100240833,-500.0,0.00032875,31]
[336755943,1725100240842,-500.25508391,0.00032876,2]
[336755944,1725100240851,-500.0,0.00032876,2]
[336755945,1725100240860,-500.0,0.00032876,31]
[336755946,1725100240870,-500.0,0.00032876,31]
[336755947,1725100240879,-500.0,0.00032876,31]
[336755948,1725100240888,-500.0,0.00032876,7]
[336755949,1725100240898,-500.0,0.00032876,31]
[336755950,1725100240907,-500.91403743,0.00032876,31]
[336755951,1725100240917,-500.0,0.00032876,31]
[336755952,1725100240926,-406.90109149,0.00032876,31]
[336755953,1725100240935,-500.0,0.00032876,31]
[336755955,1725100240944,-500.0,0.00032876,31]
[336755956,1725100240954,-500.0,0.00032876,31]
[336755958,1725100240963,-309.63691839,0.00032876,31]
[336755960,1725100240978,-500.0,0.00032876,31]
[336755962,1725100240987,-500.0,0.00032876,31]
[336755964,1725100240996,-500.0,0.00032876,31]
[336755966,1725100241006,-500.49250962,0.00032876,31]
[336755969,1725100241018,-500.0,0.00032876,31]
[336755971,1725100241031,-500.0,0.00032876,31]
[336755973,1725100241042,-501.57194958,0.00032876,31]
[336755975,1725100241055,-600.0,0.00032876,31]
[336755978,1725100241066,-500.0,0.00032876,31]
[336755980,1725100241076,-500.0,0.00032876,31]
[336755982,1725100241085,-500.0,0.00032876,31]
[336755984,1725100241095,-500.0,0.00032876,31]
[336755986,1725100241104,-503.55178909,0.00032876,31]
[336755987,1725100241113,-500.0,0.00032876,31]
[336755989,1725100241122,-500.0,0.00032876,31]
[336755991,1725100241132,-500.0,0.00032876,31]
[336755993,1725100241141,-154.60575532,0.00032876,31]
[336755995,1725100241150,-500.70089688,0.00032876,31]
[336755997,1725100241159,-500.0,0.00032876,31]
[336756000,1725100241169,-500.0,0.00032876,31]
[336756002,1725100241179,-500.81426948,0.00032876,31]
[336756004,1725100241189,-500.0,0.00032876,31]
[336756006,1725100241198,-151.0,0.00032876,7]
[336756008,1725100241208,-151.0,0.00032876,7]
[336756010,1725100241223,-151.0,0.00032876,7]
[336756012,1725100241235,-500.61892161,0.00032876,31]
[336756014,1725100241243,-603.76,0.00032876,31]
[336756016,1725100241253,-500.0,0.00032876,31]
[336756018,1725100241262,-1716.69,0.00032876,31]
[336756020,1725100241271,-500.0,0.00032876,31]
[336756022,1725100241280,-208.75230174,0.00032876,31]
[336756023,1725100241289,-500.0,0.00032876,31]
[336756025,1725100241299,-500.0,0.00032876,31]
[336756026,1725100241308,-500.0,0.00032876,31]
[336756027,1725100241317,-500.0,0.00032876,31]
[336756028,1725100241326,-500.0,0.00032876,31]
[336756029,1725100241336,-500.0,0.00032876,31]
[336756030,1725100241345,-500.0,0.00032876,31]
[336756031,1725100241354,-500.0,0.00032876,31]
[336756032,1725100241363,-897.81,0.00032876,31]
[336756033,1725100241372,-500.0,0.00032876,31]
[336756034,1725100241381,-500.0,0.00032876,31]
[336756035,1725100241390,-500.0,0.00032876,31]
[336756036,1725100241399,-500.0,0.00032876,7]
[336756037,1725100241408,-500.0,0.00032876,31]
[336756038,1725100241418,-500.0,0.00032876,31]
[336756039,1725100241428,-500.0,0.00032876,31]
[336756040,1725100241437,-564.72001933,0.00032876,31]
[336756041,1725100241446,-592.77987138,0.00032876,31]
[336756042,1725100241455,-500.0,0.00032876,31]
[336756043,1725100241464,-431.43589812,0.00032876,31]
[336756044,1725100241474,-501.02018919,0.00032876,2]
[336756045,1725100241485,-500.0,0.00032876,31]
[336756046,1725100241494,-500.0,0.00032876,31]
[336756047,1725100241503,-500.0,0.00032876,31]
[336756048,1725100241518,-500.0,0.00032876,31]
[336756049,1725100241527,-853.62,0.00032876,31]
[336756050,1725100241609,-500.0,0.00032876,31]
[336756051,1725100241628,-500.0,0.00032876,31]
[336756052,1725100241637,-515.11201805,0.00032876,31]
[336756053,1725100241648,-500.0,0.00032876,14]
[336756054,1725100241659,-500.0,0.00032876,30]
[336756055,1725100241668,-500.0,0.00032876,31]
[336756056,1725100241677,-500.0,0.00032876,31]
[336756057,1725100241687,-500.0,0.00032876,31]
[336756058,1725100241697,-527.76,0.00032876,31]
[336756059,1725100241706,-500.0,0.00032876,31]
[336756060,1725100241716,-500.0,0.00032876,31]
[336756061,1725100241726,-500.0,0.00032876,31]
[336756062,1725100241735,-500.0,0.00032876,31]
[336756063,1725100241744,-500.0,0.00032876,31]
[336756064,1725100241754,-500.0,0.00032876,31]
[336756065,1725100241765,-500.0,0.00032876,31]
[336756066,1725100241774,-625.54,0.00032876,7]
[336756067,1725100241783,-500.0,0.00032876,31]
[336756068,1725100241792,-500.0,0.00032876,31]
[336756069,1725100241802,-500.0,0.00032876,31]
[336756070,1725100241813,-500.0,0.00032876,31]
[336756071,1725100241822,-500.0,0.00032876,31]
[336756072,1725100241832,-500.0,0.00032876,31]
[336756073,1725100241841,-500.0,0.00032876,31]
[336756074,1725100241850,-502.89546503,0.00032876,31]
[336756075,1725100241860,-500.0,0.00032876,31]
[336756076,1725100241869,-500.0,0.00032876,31]
[336756077,1725100241878,-500.0,0.00032876,31]
[336756078,1725100241888,-501.22882106,0.00032876,31]
[336756079,1725100241898,-500.0,0.00032876,31]
[336756080,1725100241908,-500.0,0.00032876,31]
[336756081,1725100241920,-200.34026737,0.00032876,31]
[336756082,1725100241931,-500.81508082,0.00032876,31]
[336756083,1725100241942,-500.0,0.00032876,31]
[336756084,1725100241952,-500.0,0.00032876,31]
[336756085,1725100241961,-500.0,0.00032876,31]
[336756086,1725100241970,-500.0,0.00032876,31]
[336756087,1725100241980,-500.0,0.00032876,31]
[336756088,1725100241989,-500.0,0.00032876,31]
[336756089,1725100241998,-500.0,0.00032876,31]
[336756090,1725100242007,-500.0,0.00032876,31]
[336756091,1725100242016,-500.0,0.00032876,31]
[336756092,1725100242026,-151.0,0.00032876,7]
[336756093,1725100242036,-151.0,0.00032876,7]
[336756094,1725100242048,-500.0,0.00032876,31]
[336756095,1725100242060,-151.0,0.00032876,7]
[336756096,1725100242069,-151.0,0.00032876,7]
[336756097,1725100242079,-151.0,0.00032876,7]